fUSD/lending_fUSD_20250308
["ID","MTS","AMOUNT","RATE_DAILY","PERIOD"]
[355652882,1741438242017,-1192.94,8.219e-05,2]
[355652883,1741438242025,-500.0,8.219e-05,2]
[355652884,1741438242034,-499.33662948,8.219e-05,2]
[355652885,1741438242044,-557.2,8.219e-05,2]
[355652886,1741438242053,-749.63,8.219e-05,2]
[355652887,1741438242063,-500.0,8.219e-05,2]
[355652888,1741438242072,-1158.64,8.219e-05,2]
[355652889,1741438242081,-404.41255572,8.219e-05,2]
[355652890,1741438242090,-500.0,8.219e-05,2]
[355652891,1741438242100,-618.04,8.219e-05,2]
[355652892,1741438242110,-500.0,8.219e-05,2]
[355652893,1741438242120,-500.0,8.219e-05,2]
[355652894,1741438242129,-500.0,8.219e-05,2]
[355652895,1741438242139,-500.0,8.219e-05,2]
[355652896,1741438242148,-502.50358042,8.219e-05,2]
[355652897,1741438242158,-938.43,8.219e-05,2]
[355652898,1741438242167,-500.0,8.219e-05,2]
[355652899,1741438242177,-500.0,8.219e-05,2]
[355652900,1741438242186,-1393.25,8.219e-05,2]
[355652901,1741438242196,-500.0,8.219e-05,2]
[355652902,1741438242206,-500.0,8.219e-05,2]
[355652903,1741438242216,-511.22936853,8.219e-05,2]
[355652904,1741438242225,-1180.68,8.219e-05,2]
[355652905,1741438242235,-500.0,8.219e-05,2]
[355652906,1741438242246,-1042.13,8.219e-05,2]
[355652907,1741438242255,-500.0,8.219e-05,2]
[355652908,1741438242264,-500.0,8.219e-05,2]
[355652909,1741438242275,-505.00973048,8.219e-05,2]
[355652910,1741438242284,-500.0,8.219e-05,2]
[355652911,1741438242295,-511.38065122,8.219e-05,2]
[355652912,1741438242307,-500.0,8.219e-05,2]
[355652913,1741438242316,-1201.39,8.219e-05,2]
[355652914,1741438242326,-500.0,8.219e-05,2]
[355652915,1741438242336,-500.0,8.219e-05,2]
[355652916,1741438242346,-500.0,8.219e-05,2]
[355652917,1741438242356,-500.0,8.219e-05,2]
[355652918,1741438242366,-500.0,8.219e-05,2]
[355652919,1741438242376,-1027.24,8.219e-05,2]
[355652920,1741438242386,-601.39,8.219e-05,2]
[355652921,1741438242395,-500.0,8.219e-05,2]
[355652922,1741438242405,-570.77789511,8.219e-05,2]
[355652923,1741438242414,-635.54,8.219e-05,2]
[355652924,1741438242424,-643.58,8.219e-05,2]
[355652925,1741438242433,-500.0,8.219e-05,2]
[355652926,1741438242442,-500.0,8.219e-05,2]
[355652927,1741438242452,-500.0,8.219e-05,2]
[355652928,1741438242463,-1350.4,8.219e-05,2]
[355652929,1741438242473,-500.0,8.219e-05,2]
[355652930,1741438242482,-500.0,8.219e-05,2]
[355652931,1741438242491,-500.0,8.219e-05,2]
[355652932,1741438242502,-500.0,8.219e-05,2]
[355652933,1741438242512,-500.0,8.219e-05,2]
[355652934,1741438242521,-500.0,8.219e-05,2]
[355652935,1741438242531,-1032.38,8.219e-05,2]
[355652936,1741438242542,-500.0,8.219e-05,2]
[355652937,1741438242553,-500.0,8.219e-05,2]
[355652938,1741438242563,-500.0,8.219e-05,2]
[355652939,1741438242573,-1208.21,8.219e-05,2]
[355652940,1741438242584,-500.0,8.219e-05,2]
[355652941,1741438242595,-500.0,8.219e-05,2]
[355652942,1741438242604,-508.85411111,8.219e-05,2]
[355652943,1741438242614,-500.0,8.219e-05,2]
[355652944,1741438242623,-500.0,8.219e-05,2]
[355652945,1741438242633,-500.0,8.219e-05,2]
[355652946,1741438242642,-500.0,8.219e-05,2]
[355652947,1741438242652,-756.35,8.219e-05,2]
[355652948,1741438242661,-500.0,8.219e-05,2]
[355652949,1741438242670,-500.0,8.219e-05,2]
[355652950,1741438242680,-500.0,8.219e-05,2]
[355652951,1741438242689,-512.45,8.219e-05,2]
[355652952,1741438242698,-509.26744881,8.219e-05,2]
[355652953,1741438242708,-500.0,8.219e-05,2]
[355652954,1741438242717,-1486.03,8.219e-05,2]
[355652955,1741438242726,-500.0,8.219e-05,2]
[355652956,1741438242735,-500.0,8.219e-05,2]
[355652957,1741438242745,-632.20380937,8.219e-05,2]
[355652958,1741438242754,-500.0,8.219e-05,2]
[355652959,1741438242764,-1634.83,8.219e-05,2]
[355652960,1741438242773,-500.0,8.219e-05,2]
[355652961,1741438242783,-500.0,8.219e-05,2]
[355652962,1741438242969,-1034.09,8.219e-05,2]
[355652964,1741438242979,-500.0,8.219e-05,2]
[355652965,1741438242989,-500.0,8.219e-05,2]
[355652966,1741438242998,-500.0,8.219e-05,2]
[355652968,1741438243008,-500.0,8.219e-05,2]
[355652970,1741438243017,-500.0,8.219e-05,2]
[355652971,1741438243027,-1079.28,8.219e-05,2]
[355652973,1741438243036,-500.0,8.219e-05,2]
[355652975,1741438243046,-500.0,8.219e-05,2]
[355652976,1741438243055,-500.0,8.219e-05,2]
[355652977,1741438243065,-500.0,8.219e-05,2]
[355652978,1741438243074,-500.0,8.219e-05,2]
[355652980,1741438243084,-776.22,8.219e-05,2]
[355652981,1741438243093,-1139.85,8.219e-05,2]
[355652982,1741438243102,-528.9,8.219e-05,2]
[355652983,1741438243111,-500.0,8.219e-05,2]
[355652984,1741438243121,-24274.01,8.219e-05,2]
[355652985,1741438243130,-711.19786441,8.219e-05,2]
[355652986,1741438243140,-500.0,8.219e-05,2]
[355652987,1741438243150,-500.0,8.219e-05,2]
[355652988,1741438243160,-500.0,8.219e-05,2]
[355652992,1741438243170,-500.0,8.219e-05,2]
[355652995,1741438243179,-500.0,8.219e-05,2]
[355652996,1741438243189,-500.0,8.219e-05,2]
[355652998,1741438243200,-500.0,8.219e-05,2]
[355653001,1741438243210,-500.0,8.219e-05,2]
[355653004,1741438243219,-500.0,8.219e-05,2]
[355653006,1741438243228,-500.0,8.219e-05,2]
[355653007,1741438243237,-11818.78,8.219e-05,2]
[355653008,1741438243247,-630.05,8.219e-05,2]
[355653009,1741438243256,-955.48,8.219e-05,2]
[355653010,1741438243265,-6372.58,8.219e-05,2]
[355653011,1741438243275,-500.0,8.219e-05,2]
[355653012,1741438243284,-505.1965852,8.219e-05,2]
[355653013,1741438243294,-2578.14,8.219e-05,2]
[355653014,1741438243303,-773.03,8.219e-05,2]
[355653015,1741438243312,-500.0,8.219e-05,2]
[355653016,1741438243321,-500.0,8.219e-05,2]
[355653017,1741438243330,-500.0,8.219e-05,2]
[355653018,1741438243340,-500.0,8.219e-05,2]
[355653019,1741438243349,-500.0,8.219e-05,2]
[355653020,1741438243358,-503.05852439,8.219e-05,2]
[355653021,1741438243368,-2238.92,8.219e-05,2]
[355653022,1741438243378,-500.0,8.219e-05,2]
[355653023,1741438243387,-2845.89,8.219e-05,2]
[355653024,1741438243395,-1049.58,8.219e-05,2]
[355653025,1741438243403,-500.0,8.219e-05,2]
[355653026,1741438243412,-500.0,8.219e-05,2]
[355653027,1741438243421,-500.0,8.219e-05,2]
[355653028,1741438243430,-725.11,8.219e-05,2]
[355653029,1741438243440,-500.0,8.219e-05,2]
[355653030,1741438243450,-549.05619237,8.219e-05,2]
[355653031,1741438243462,-500.0,8.219e-05,2]
[355653032,1741438243472,-1088.74,8.219e-05,2]
[355653033,1741438243482,-500.0,8.219e-05,2]
[355653034,1741438243491,-845.95,8.219e-05,2]
[355653035,1741438243502,-1337.92,8.219e-05,2]
[355653036,1741438243511,-500.0,8.219e-05,2]
[355653037,1741438243522,-587.89,8.219e-05,2]
[355653038,1741438243531,-2770.91,8.219e-05,2]
[355653039,1741438243542,-500.0,8.219e-05,2]
[355653040,1741438243552,-1803.71,8.219e-05,2]
[355653041,1741438243561,-500.0,8.219e-05,2]
[355653042,1741438243571,-500.0,8.219e-05,2]
[355653043,1741438243580,-500.0,8.219e-05,2]
[355653044,1741438243589,-500.0,8.219e-05,2]
[355653045,1741438243598,-500.0,8.219e-05,2]
[355653047,1741438243607,-893.75,8.219e-05,2]
[355653049,1741438243616,-500.0,8.219e-05,2]
[355653050,1741438243626,-2533.0,8.219e-05,2]
[355653051,1741438243636,-2806.88,8.219e-05,2]
[355653052,1741438243646,-883.04,8.219e-05,2]
[355653053,1741438243655,-4108.03,8.219e-05,2]
[355653054,1741438243665,-682.94,8.219e-05,2]
[355653055,1741438243675,-1935.43,8.219e-05,2]
[355653056,1741438243684,-500.0,8.219e-05,2]
[355653057,1741438243695,-6368.36,8.219e-05,2]
[355653058,1741438243704,-500.0,8.219e-05,2]
[355653059,1741438243714,-2390.63,8.219e-05,2]
[355653060,1741438243724,-578.6,8.219e-05,2]
[355653061,1741438243734,-3219.32,8.219e-05,2]
[355653062,1741438243744,-2103.33,8.219e-05,2]
[355653063,1741438243753,-500.0,8.219e-05,2]
[355653064,1741438243763,-500.0,8.219e-05,2]
[355653065,1741438243772,-505.97110275,8.219e-05,2]
[355653066,1741438243782,-500.0,8.219e-05,2]
[355653067,1741438243791,-1201.77,8.219e-05,2]
[355653068,1741438243801,-1431.31,8.219e-05,2]
[355653069,1741438243810,-889.73,8.219e-05,2]
[355653070,1741438243820,-500.0,8.219e-05,2]
[355653071,1741438243830,-500.0,8.219e-05,2]
[355653072,1741438243839,-500.0,8.219e-05,2]
[355653073,1741438243849,-500.0,8.219e-05,2]
[355653074,1741438243858,-500.0,8.219e-05,2]
[355653075,1741438243868,-500.0,8.219e-05,2]
[355653076,1741438243878,-500.0,8.219e-05,2]
[355653077,1741438243888,-500.0,8.219e-05,2]
[355653078,1741438243899,-6030.67,8.219e-05,2]
[355653079,1741438243908,-500.0,8.219e-05,2]
[355653080,1741438243918,-1952.06,8.219e-05,2]
[355653081,1741438243928,-1998.05,8.219e-05,2]
[355653082,1741438243938,-500.0,8.219e-05,2]
[355653083,1741438243948,-3582.83,8.219e-05,2]
[355653084,1741438243959,-500.0,8.219e-05,2]
[355653085,1741438243969,-500.0,8.219e-05,2]
[355653086,1741438243979,-500.0,8.219e-05,2]
[355653087,1741438243989,-1430.04,8.219e-05,2]
[355653088,1741438243999,-500.0,8.219e-05,2]
[355653089,1741438244009,-500.0,8.219e-05,2]
[355653090,1741438244019,-733.78,8.219e-05,2]
[355653091,1741438244029,-500.0,8.219e-05,2]
[355653092,1741438244039,-500.0,8.219e-05,2]
[355653093,1741438244048,-500.0,8.219e-05,2]
[355653094,1741438244057,-500.0,8.219e-05,2]
[355653095,1741438244067,-500.0,8.219e-05,2]
[355653096,1741438244077,-2727.76,8.219e-05,2]
[355653097,1741438244087,-500.0,8.219e-05,2]
[355653098,1741438244096,-505.79358905,8.219e-05,2]
[355653099,1741438244106,-1745.16,8.219e-05,2]
[355653100,1741438244116,-3265.94,8.219e-05,2]
[355653101,1741438244127,-500.0,8.219e-05,2]
[355653102,1741438244137,-500.0,8.219e-05,2]
[355653103,1741438244147,-648.33,8.219e-05,2]
[355653104,1741438244156,-500.0,8.219e-05,2]
[355653105,1741438244166,-5567.99,8.219e-05,2]
[355653106,1741438244175,-500.0,8.219e-05,2]
[355653107,1741438244185,-500.0,8.219e-05,2]
[355653108,1741438244196,-1048.08,8.219e-05,2]
[355653109,1741438244206,-500.0,8.219e-05,2]
[355653110,1741438244216,-503.24270349,8.219e-05,2]
[355653111,1741438244225,-500.0,8.219e-05,2]
[355653112,1741438244235,-500.0,8.219e-05,2]
[355653113,1741438244245,-500.0,8.219e-05,2]
[355653114,1741438244255,-567.02,8.219e-05,2]
[355653115,1741438244265,-394.38548887,8.219e-05,2]
[355653116,1741438244274,-1978.79,8.219e-05,2]
[355653117,1741438244285,-500.0,8.219e-05,2]
[355653118,1741438244294,-500.0,8.219e-05,2]
[355653119,1741438244304,-7017.57,8.219e-05,2]
[355653120,1741438244314,-2020.55,8.219e-05,2]
[355653121,1741438244324,-500.0,8.219e-05,2]
[355653122,1741438244333,-500.0,8.219e-05,2]
[355653123,1741438244343,-3182.73,8.219e-05,2]
[355653124,1741438244353,-500.0,8.219e-05,2]
[355653125,1741438244363,-500.0,8.219e-05,2]
[355653126,1741438244373,-500.0,8.219e-05,2]
[355653127,1741438244383,-923.7,8.219e-05,2]
[355653128,1741438244393,-500.0,8.219e-05,2]
[355653129,1741438244402,-500.0,8.219e-05,2]
[355653130,1741438244411,-500.0,8.219e-05,2]
[355653131,1741438244420,-3373.36,8.219e-05,2]
[355653132,1741438244430,-500.0,8.219e-05,2]
[355653133,1741438244440,-500.0,8.219e-05,2]
[355653134,1741438244450,-500.0,8.219e-05,2]
[355653135,1741438244466,-500.0,8.219e-05,2]
[355653136,1741438244475,-500.0,8.219e-05,2]
[355653137,1741438244485,-1901.62,8.219e-05,2]
[355653138,1741438244495,-500.0,8.219e-05,2]
[355653139,1741438244505,-500.0,8.219e-05,2]
[355653140,1741438244514,-500.0,8.219e-05,2]
[355653141,1741438244524,-679.21,8.219e-05,2]
[355653142,1741438244534,-500.0,8.219e-05,2]
[355653143,1741438244544,-500.0,8.219e-05,2]
[355653144,1741438244554,-500.0,8.219e-05,2]
[355653145,1741438244563,-503.64059911,8.219e-05,2]
[355653146,1741438244572,-500.0,8.219e-05,2]
[355653147,1741438244582,-500.0,8.219e-05,2]
[355653148,1741438244591,-500.0,8.219e-05,2]
[355653149,1741438244601,-500.0,8.219e-05,2]
[355653150,1741438244611,-1949.73,8.219e-05,2]
[355653151,1741438244621,-516.48722015,8.219e-05,2]
[355653152,1741438244630,-500.0,8.219e-05,2]
[355653153,1741438244640,-1284.44,8.219e-05,2]
[355653154,1741438244650,-500.0,8.219e-05,2]
[355653155,1741438244659,-1641.97,8.219e-05,2]
[355653156,1741438244668,-500.0,8.219e-05,2]
[355653157,1741438244678,-500.0,8.219e-05,2]
[355653158,1741438244687,-1772.88,8.219e-05,2]
[355653159,1741438244697,-500.0,8.219e-05,2]
[355653160,1741438244706,-500.0,8.219e-05,2]
[355653161,1741438244715,-500.0,8.219e-05,2]
[355653162,1741438244724,-320.69584766,8.219e-05,2]
[355653163,1741438244733,-150.0,8.219e-05,2]
[355653164,1741438244743,-537.52,8.219e-05,2]
[355653165,1741438244752,-2117.72,8.219e-05,2]
[355653166,1741438244761,-500.0,8.219e-05,2]
[355653167,1741438244771,-500.0,8.219e-05,2]
[355653168,1741438244781,-500.0,8.219e-05,2]
[355653169,1741438244790,-1202.56,8.219e-05,2]
[355653170,1741438244799,-734.19,8.219e-05,2]
[355653171,1741438244809,-500.0,8.219e-05,2]
[355653172,1741438244818,-1028.94,8.219e-05,2]
[355653173,1741438244827,-3982.18,8.219e-05,2]
[355653174,1741438244836,-887.87,8.219e-05,2]
[355653175,1741438244846,-512.91821898,8.219e-05,2]
[355653176,1741438244855,-5000.0,8.219e-05,2]
[355653177,1741438244865,-500.0,8.219e-05,2]
[355653178,1741438244875,-1438.2,8.219e-05,2]
[355653179,1741438244884,-525.12,8.219e-05,2]
[355653180,1741438244894,-500.0,8.219e-05,2]
[355653181,1741438244904,-733.84,8.219e-05,2]
[355653182,1741438244913,-4814.75,8.219e-05,2]
[355653183,1741438244924,-1653.22,8.219e-05,2]
[355653184,1741438244933,-1403.92,8.219e-05,2]
[355653185,1741438244943,-3766.86,8.219e-05,2]
[355653186,1741438244952,-500.0,8.219e-05,2]
[355653187,1741438244962,-1686.4,8.219e-05,2]
[355653188,1741438244971,-500.0,8.219e-05,2]
[355653189,1741438244981,-1510.93,8.219e-05,2]
[355653190,1741438244990,-500.0,8.219e-05,2]
[355653191,1741438244999,-3050.16,8.219e-05,2]
[355653192,1741438245009,-500.0,8.219e-05,2]
[355653193,1741438245018,-204.46183585,8.219e-05,2]
[355653194,1741438245027,-500.0,8.219e-05,2]
[355653195,1741438245038,-500.0,8.219e-05,2]
[355653196,1741438245047,-500.0,8.219e-05,2]
[355653197,1741438245057,-950.17,8.219e-05,2]
[355653198,1741438245067,-500.0,8.219e-05,2]
[355653199,1741438245076,-500.0,8.219e-05,2]
[355653200,1741438245085,-500.0,8.219e-05,2]
[355653201,1741438245095,-569.58,8.219e-05,2]
[355653202,1741438245104,-1353.88,8.219e-05,2]
[355653203,1741438245114,-500.0,8.219e-05,2]
[355653204,1741438245123,-500.0,8.219e-05,2]
[355653205,1741438245132,-500.0,8.219e-05,2]
[355653206,1741438245142,-500.0,8.219e-05,2]
[355653207,1741438245151,-6148.03,8.219e-05,2]
[355653208,1741438245160,-500.0,8.219e-05,2]
[355653209,1741438245169,-2556.56,8.219e-05,2]
[355653210,1741438245179,-587.08039703,8.219e-05,2]
[355653211,1741438245188,-507.87999204,8.219e-05,2]
[355653212,1741438245198,-929.66,8.219e-05,2]
[355653213,1741438245207,-500.0,8.219e-05,2]
[355653214,1741438245216,-12972.58,8.219e-05,2]
[355653215,1741438245226,-500.0,8.219e-05,2]
[355653216,1741438245235,-500.0,8.219e-05,2]
[355653217,1741438245244,-500.0,8.219e-05,2]
[355653218,1741438245254,-500.0,8.219e-05,2]
[355653219,1741438245263,-508.18400093,8.219e-05,2]
[355653220,1741438245272,-500.0,8.219e-05,2]
[355653221,1741438245282,-500.0,8.219e-05,2]
[355653222,1741438245291,-2976.41,8.219e-05,2]
[355653223,1741438245301,-500.0,8.219e-05,2]
[355653224,1741438245310,-9650.05,8.219e-05,2]
[355653225,1741438245319,-500.0,8.219e-05,2]
[355653226,1741438245329,-500.0,8.219e-05,2]
[355653227,1741438245338,-500.0,8.219e-05,2]
[355653228,1741438245347,-500.0,8.219e-05,2]
[355653229,1741438245356,-500.0,8.219e-05,2]
[355653230,1741438245366,-500.0,8.219e-05,2]
[355653231,1741438245376,-500.0,8.219e-05,2]
[355653232,1741438245385,-939.37,8.219e-05,2]
[355653233,1741438245395,-1076.0,8.219e-05,2]
[355653234,1741438245404,-500.0,8.219e-05,2]
[355653235,1741438245414,-500.0,8.219e-05,2]
[355653236,1741438245423,-500.0,8.219e-05,2]
[355653237,1741438245433,-500.0,8.219e-05,2]
[355653238,1741438245444,-4347.93,8.219e-05,2]
[355653239,1741438245455,-500.0,8.219e-05,2]
[355653240,1741438245468,-2021.45,8.219e-05,2]
[355653241,1741438245478,-500.0,8.219e-05,2]
[355653242,1741438245487,-500.0,8.219e-05,2]
[355653243,1741438245498,-500.0,8.219e-05,2]
[355653244,1741438245509,-500.0,8.219e-05,2]
[355653245,1741438245519,-500.0,8.219e-05,2]
[355653246,1741438245529,-2359.67,8.219e-05,2]
[355653247,1741438245542,-500.0,8.219e-05,2]
[355653248,1741438245552,-500.0,8.219e-05,2]
[355653249,1741438245562,-500.0,8.219e-05,2]
[355653250,1741438245571,-2946.45,8.219e-05,2]
[355653251,1741438245581,-1594.34,8.219e-05,2]
[355653252,1741438245590,-1342.6,8.219e-05,2]
[355653253,1741438245600,-500.0,8.219e-05,2]
[355653254,1741438245609,-657.48,8.219e-05,2]
[355653255,1741438245619,-500.0,8.219e-05,2]
[355653256,1741438245629,-500.0,8.219e-05,2]
[355653257,1741438245639,-500.0,8.219e-05,2]
[355653258,1741438245650,-844.81,8.219e-05,2]
[355653259,1741438245661,-500.0,8.219e-05,2]
[355653260,1741438245671,-712.03,8.219e-05,2]
[355653261,1741438245682,-500.0,8.219e-05,2]
[355653262,1741438245691,-500.0,8.219e-05,2]
[355653263,1741438245701,-654.81,8.219e-05,2]
[355653264,1741438245711,-2208.85,8.219e-05,2]
[355653265,1741438245721,-1158.69,8.219e-05,2]
[355653266,1741438245731,-784.84,8.219e-05,2]
[355653267,1741438245742,-1435.31,8.219e-05,2]
[355653268,1741438245751,-16744.6,8.219e-05,2]
[355653269,1741438245762,-500.0,8.219e-05,2]
[355653270,1741438245771,-500.0,8.219e-05,2]
[355653271,1741438245781,-1226.18,8.219e-05,2]
[355653272,1741438245791,-3690.94,8.219e-05,2]
[355653273,1741438245801,-559.64,8.219e-05,2]
[355653274,1741438245811,-500.0,8.219e-05,2]
[355653275,1741438245820,-1941.65,8.219e-05,2]
[355653276,1741438245830,-500.0,8.219e-05,2]
[355653277,1741438245839,-500.0,8.219e-05,2]
[355653278,1741438245849,-500.0,8.219e-05,2]
[355653279,1741438245858,-2294.79,8.219e-05,2]
[355653280,1741438245867,-1851.2,8.219e-05,2]
[355653281,1741438245877,-2091.12,8.219e-05,2]
[355653282,1741438245887,-500.0,8.219e-05,2]
[355653283,1741438245896,-500.0,8.219e-05,2]
[355653284,1741438245905,-500.0,8.219e-05,2]
[355653285,1741438245914,-2313.96,8.219e-05,2]
[355653286,1741438245923,-500.0,8.219e-05,2]
[355653287,1741438245933,-1665.31,8.219e-05,2]
[355653288,1741438245943,-565.78681878,8.219e-05,2]
[355653289,1741438245952,-582.97,8.219e-05,2]
[355653290,1741438245962,-500.0,8.219e-05,2]
[355653291,1741438245971,-500.0,8.219e-05,2]
[355653292,1741438245980,-500.0,8.219e-05,2]
[355653293,1741438245989,-512.89096498,8.219e-05,2]
[355653294,1741438245998,-4447.43,8.219e-05,2]
[355653295,1741438246008,-500.0,8.219e-05,2]
[355653296,1741438246017,-500.0,8.219e-05,2]
[355653297,1741438246026,-500.0,8.219e-05,2]
[355653298,1741438246036,-3634.81,8.219e-05,2]
[355653299,1741438246045,-500.0,8.219e-05,2]
[355653300,1741438246054,-211.00630147,8.219e-05,2]
[355653301,1741438246063,-500.0,8.219e-05,2]
[355653308,1741438246239,-500.0,8.219e-05,2]
[355653309,1741438246250,-500.0,8.219e-05,2]
[355653310,1741438246259,-500.0,8.219e-05,2]
[355653311,1741438246269,-4223.34,8.219e-05,2]
[355653312,1741438246278,-500.0,8.219e-05,2]
[355653313,1741438246287,-500.0,8.219e-05,2]
[355653314,1741438246298,-515.41846597,8.219e-05,2]
[355653315,1741438246307,-500.0,8.219e-05,2]
[355653316,1741438246317,-500.0,8.219e-05,2]
[355653317,1741438246327,-500.0,8.219e-05,2]
[355653318,1741438246337,-500.0,8.219e-05,2]
[355653319,1741438246346,-511.23979938,8.219e-05,2]
[355653320,1741438246356,-500.0,8.219e-05,2]
[355653321,1741438246366,-500.0,8.219e-05,2]
[355653322,1741438246375,-500.0,8.219e-05,2]
[355653323,1741438246385,-500.0,8.219e-05,2]
[355653324,1741438246394,-3194.05,8.219e-05,2]
[355653325,1741438246404,-500.0,8.219e-05,2]
[355653326,1741438246413,-849.99,8.219e-05,2]
[355653327,1741438246423,-500.0,8.219e-05,2]
[355653328,1741438246432,-945.04,8.219e-05,2]
[355653329,1741438246442,-500.0,8.219e-05,2]
[355653330,1741438246452,-500.0,8.219e-05,2]
[355653331,1741438246469,-8455.31,8.219e-05,2]
[355653332,1741438246479,-218.54709564,8.219e-05,2]
[355653333,1741438246489,-3086.18,8.219e-05,2]
[355653334,1741438246499,-500.0,8.219e-05,2]
[355653335,1741438246509,-500.0,8.219e-05,2]
[355653336,1741438246518,-500.0,8.219e-05,2]
[355653337,1741438246528,-1102.49,8.219e-05,2]
[355653338,1741438246538,-1228.99,8.219e-05,2]
[355653339,1741438246549,-500.0,8.219e-05,2]
[355653340,1741438246559,-500.0,8.219e-05,2]
[355653341,1741438246569,-500.0,8.219e-05,2]
[355653342,1741438246579,-349.50803845,8.219e-05,2]
[355653353,1741438247020,-150.49196155,8.219e-05,2]
[355653354,1741438247030,-1848.76,8.219e-05,2]
[355653355,1741438247039,-500.0,8.219e-05,2]
[355653356,1741438247049,-500.0,8.219e-05,2]
[355653357,1741438247059,-500.0,8.219e-05,2]
[355653358,1741438247068,-500.0,8.219e-05,2]
[355653359,1741438247078,-580.48991889,8.219e-05,2]
[355653360,1741438247087,-500.0,8.219e-05,2]
[355653361,1741438247099,-1028.52,8.219e-05,2]
[355653362,1741438247109,-500.0,8.219e-05,2]
[355653363,1741438247118,-500.0,8.219e-05,2]
[355653364,1741438247127,-1532.51,8.219e-05,2]
[355653365,1741438247137,-605.31763365,8.219e-05,2]
[355653366,1741438247146,-500.0,8.219e-05,2]
[355653367,1741438247155,-284.63825834,8.219e-05,2]
[355653368,1741438247176,-215.36174166,8.219e-05,2]
[355653369,1741438247185,-1596.93825834,8.219e-05,2]
[355653370,1741438247206,-1026.78198562,8.219e-05,2]
[355653371,1741438247218,-418.34975604,8.219e-05,2]
[355653372,1741438247227,-1312.81024396,8.219e-05,2]
[355653373,1741438247674,-450.28975604,8.219e-05,2]
[355653374,1741438247684,-745.29524395,8.219e-05,2]
[355653375,1741438247706,-1262.27493515,8.219e-05,2]
[355653376,1741438247733,-14123.9798209,8.219e-05,2]
[355653377,1741438247743,-301.52847551,8.219e-05,2]
[355653378,1741438247753,-2821.18843399,8.219e-05,2]
[355653379,1741438250275,-4545.70374119,8.219e-05,2]
[355653380,1741438250308,-840.94264001,8.219e-05,2]
[355653381,1741438279434,400.0,8e-05,2]
[355653382,1741438283180,-150.0,8.218e-05,2]
[355653383,1741438283206,-10255.3,8.219e-05,2]
[355653384,1741438310262,100000.0,0.0002589,31]
[355653385,1741438317739,100000.0,0.0002589,32]
[355653386,1741438321377,100000.0,0.0002589,33]
[355653387,1741438325322,100000.0,0.0002589,34]
[355653388,1741438328940,100000.0,0.0002589,35]
[355653389,1741438332245,100000.0,0.0002589,36]
[355653390,1741438335768,100000.0,0.0002589,37]
[355653391,1741438339033,100000.0,0.0002589,38]
[355653392,1741438342699,100000.0,0.0002589,39]
[355653393,1741438362206,194.6,0.0002589,30]
[355653394,1741438488963,176.23,7.57e-05,2]
[355653395,1741438558073,2225.66136803,0.00025898,30]
[355653396,1741438584994,-953.738694,8.178e-05,2]
[355653397,1741438585019,-150.0,8.198e-05,2]
[355653398,1741438585045,-300.0,8.217e-05,2]
[355653399,1741438585069,-150.0,8.218e-05,2]
[355653400,1741438585095,-500.0,8.218e-05,2]
[355653401,1741438585122,-181.38458813,8.218e-05,2]
[355653402,1741438585149,-235.59826277,8.218e-05,2]
[355653403,1741438585174,-500.0,8.218e-05,2]
[355653404,1741438585200,-500.0,8.218e-05,2]
[355653405,1741438585225,-500.0,8.218e-05,2]
[355653406,1741438585253,-500.0,8.218e-05,2]
[355653407,1741438585277,-1056.28,8.219e-05,2]
[355653408,1741438585301,-500.0,8.219e-05,2]
[355653409,1741438585325,-500.0,8.219e-05,2]
[355653410,1741438585348,-539.82052315,8.219e-05,2]
[355653411,1741438585371,-194.60013895,8.219e-05,2]
[355653412,1741438585397,-500.0,8.219e-05,2]
[355653413,1741438585420,-500.0,8.219e-05,2]
[355653414,1741438585714,-386.79302332,8.219e-05,2]
[355653415,1741438585740,-500.0,8.219e-05,2]
[355653416,1741438585768,-500.0,8.219e-05,2]